{"text_format":"3","workbook":"xlsx","n_sheets":1,"sheets":["Tansiyon ve Kan Şekeri"],"not_rendered":{"defined_names":9},"read":"whole","date_system":"1900"}

{"sheet":"Tansiyon ve Kan Şekeri","index":0,"n_rows":13,"n_cols":11,"rows_kept":13,"merged":[[0,1,4,3],[0,4,0,9],[1,4,1,6],[1,7,1,9],[3,7,4,7],[3,8,4,8],[3,9,4,9]]}
[null,"Tansiyon ve\nKan Şekeri İzleyicisi",null,null,"Aşağıdaki E2’den J5’e kadar olan hücrelerde ölçek değerlerini özelleştirin."]
[{"$nulls":4},"TANSİYON",null,null,"ŞEKER ÖLÇEĞİ"]
[{"$nulls":4},120,"SİSTOLİK",140,70,100,150]
[{"$nulls":4},80,"DİYASTOLİK",90,"DÜŞÜK","NORMAL","YÜKSEK"]
[{"$nulls":4},"HEDEFLENEN TANSİYON",null,"DOKTORU ARA"]
[null,"Tarih","Saat","Olay","Sistolik","Diyastolik","Nabız","Şeker","Düzey","Durum","Notlar"]
[null,{"$f":"TODAY()","v":"2018-06-28"},"06:00:00","Uyanınca",129,79,72,55,{"$f":"TansiyonVeKanŞekeri[[#This Row],[Şeker]]","v":55},{"$f":"IFERROR(IF(TansiyonVeKanŞekeri[[#This Row],[Düzey]]=0,\"\",IF(TansiyonVeKanŞekeri[[#This Row],[Düzey]]<=ŞDüşük,\"DÜŞÜK\",IF(AND(TansiyonVeKanŞekeri[[#This Row],[Düzey]]>ŞDüşük,TansiyonVeKanŞekeri[[#This Row],[Düzey]]<ŞYüksek),\"NORMAL\",\"YÜKSEK\"))), \"\")","v":"DÜŞÜK"}]
[null,{"$f":"TODAY()","v":"2018-06-28"},"07:00:00","Yemekten önce",120,80,74,70,{"$f":"TansiyonVeKanŞekeri[[#This Row],[Şeker]]","v":70},{"$f":"IFERROR(IF(TansiyonVeKanŞekeri[[#This Row],[Düzey]]=0,\"\",IF(TansiyonVeKanŞekeri[[#This Row],[Düzey]]<=ŞDüşük,\"DÜŞÜK\",IF(AND(TansiyonVeKanŞekeri[[#This Row],[Düzey]]>ŞDüşük,TansiyonVeKanŞekeri[[#This Row],[Düzey]]<ŞYüksek),\"NORMAL\",\"YÜKSEK\"))), \"\")","v":"DÜŞÜK"}]
[null,"2018-06-28","09:00:00","Yemekten sonra",133,80,75,75,{"$f":"TansiyonVeKanŞekeri[[#This Row],[Şeker]]","v":75},{"$f":"IFERROR(IF(TansiyonVeKanŞekeri[[#This Row],[Düzey]]=0,\"\",IF(TansiyonVeKanŞekeri[[#This Row],[Düzey]]<=ŞDüşük,\"DÜŞÜK\",IF(AND(TansiyonVeKanŞekeri[[#This Row],[Düzey]]>ŞDüşük,TansiyonVeKanŞekeri[[#This Row],[Düzey]]<ŞYüksek),\"NORMAL\",\"YÜKSEK\"))), \"\")","v":"NORMAL"}]
[null,"2018-06-28","10:00:00","Yalnızca tansiyon",143,91,75,190,{"$f":"TansiyonVeKanŞekeri[[#This Row],[Şeker]]","v":190},{"$f":"IFERROR(IF(TansiyonVeKanŞekeri[[#This Row],[Düzey]]=0,\"\",IF(TansiyonVeKanŞekeri[[#This Row],[Düzey]]<=ŞDüşük,\"DÜŞÜK\",IF(AND(TansiyonVeKanŞekeri[[#This Row],[Düzey]]>ŞDüşük,TansiyonVeKanŞekeri[[#This Row],[Düzey]]<ŞYüksek),\"NORMAL\",\"YÜKSEK\"))), \"\")","v":"YÜKSEK"}]
[null,"2018-06-28","12:00:00","Yemekten önce",141,84,70,140,{"$f":"TansiyonVeKanŞekeri[[#This Row],[Şeker]]","v":140},{"$f":"IFERROR(IF(TansiyonVeKanŞekeri[[#This Row],[Düzey]]=0,\"\",IF(TansiyonVeKanŞekeri[[#This Row],[Düzey]]<=ŞDüşük,\"DÜŞÜK\",IF(AND(TansiyonVeKanŞekeri[[#This Row],[Düzey]]>ŞDüşük,TansiyonVeKanŞekeri[[#This Row],[Düzey]]<ŞYüksek),\"NORMAL\",\"YÜKSEK\"))), \"\")","v":"NORMAL"}]
[null,{"$f":"TODAY()","v":"2018-06-28"},"15:00:00","Yemekten sonra",132,80,68,90,{"$f":"TansiyonVeKanŞekeri[[#This Row],[Şeker]]","v":90},{"$f":"IFERROR(IF(TansiyonVeKanŞekeri[[#This Row],[Düzey]]=0,\"\",IF(TansiyonVeKanŞekeri[[#This Row],[Düzey]]<=ŞDüşük,\"DÜŞÜK\",IF(AND(TansiyonVeKanŞekeri[[#This Row],[Düzey]]>ŞDüşük,TansiyonVeKanŞekeri[[#This Row],[Düzey]]<ŞYüksek),\"NORMAL\",\"YÜKSEK\"))), \"\")","v":"NORMAL"},"Tansiyon ilaçları yemekle birlikte alındı"]
[null,"Ortalamalar",null,null,{"$f":"SUBTOTAL(101,TansiyonVeKanŞekeri[Sistolik])","v":133},{"$f":"SUBTOTAL(101,TansiyonVeKanŞekeri[Diyastolik])","v":{"v":82.33333333333333,"d":"82"}},{"$f":"SUBTOTAL(101,TansiyonVeKanŞekeri[Nabız])","v":{"v":72.33333333333333,"d":"72"}},{"$f":"SUBTOTAL(101,TansiyonVeKanŞekeri[Şeker])","v":{"v":103.33333333333333,"d":"103"}}]